fUSD/lending_fUSD_20260218
["ID","MTS","AMOUNT","RATE_DAILY","PERIOD"]
[405943490,1771433444005,-151.0,0.0001,2]
[405943491,1771433444014,-500.0,0.0001,2]
[405943492,1771433444023,-151.0,0.0001,2]
[405943493,1771433444032,-151.0,0.0001,2]
[405943494,1771433444040,-151.0,0.0001,2]
[405943495,1771433444050,-151.0,0.0001,2]
[405943496,1771433444059,-151.0,0.0001,2]
[405943497,1771433444067,-151.0,0.0001,2]
[405943498,1771433444076,-151.0,0.0001,2]
[405943499,1771433444085,-151.0,0.0001,2]
[405943500,1771433444095,-151.0,0.0001,2]
[405943501,1771433444103,-151.0,0.0001,2]
[405943502,1771433444113,-151.0,0.0001,2]
[405943503,1771433444122,-151.0,0.0001,2]
[405943504,1771433444132,-151.0,0.0001,2]
[405943505,1771433444141,-151.0,0.0001,2]
[405943506,1771433444150,-285.65412832,0.0001,2]
[405943507,1771433444160,-1447.46038835,0.0001,2]
[405943508,1771433444170,-1447.46038835,0.0001,2]
[405943509,1771433444179,-2000.0,0.00010011,2]
[405943510,1771433444188,-1865.39566179,0.00010011,2]
[405943511,1771433444197,-1460.671579,0.00010011,2]
[405943512,1771433444207,-2000.0,0.00010011,2]
[405943513,1771433444216,-516.37,0.00010046,2]
[405943514,1771433444224,-762.01554685,0.00010094,2]
[405943515,1771433444233,-1600.0,0.0001025,2]
[405943516,1771433444242,-516.37,0.00010502,2]
[405943517,1771433444251,-1768.618182,0.00010544,2]
[405943518,1771433444260,-5143.46,0.00010559,2]
[405943519,1771433444269,-2500.0,0.00010559,2]
[405943520,1771433444278,-1341.95678593,0.00010559,2]
[405943521,1771433444287,-5134.02,0.00010573,2]
[405943522,1771433444296,-1496.20683142,0.000109,2]
[405943523,1771433444306,-1496.20683139,0.000109,2]
[405943524,1771433444315,-1496.20683139,0.000109,2]
[405943525,1771433444324,-150.0,0.00010959,2]
[405943526,1771433444333,-166.66,0.00010959,2]
[405943527,1771433444342,-5127.51,0.00010959,2]
[405943528,1771433444351,-516.37,0.00010959,2]
[405943529,1771433444360,-5116.92,0.00010959,2]
[405943530,1771433444369,-5000.0,0.00011,2]
[405943531,1771433444378,-166.66,0.00011068,2]
[405943532,1771433444387,-5113.51,0.00011068,2]
[405943533,1771433444396,-47536.88696197,0.00011099,2]
[405943534,1771433444406,-47536.88696193,0.00011099,2]
[405943535,1771433444416,-47536.88696193,0.00011099,2]
[405943536,1771433444425,-47536.88696193,0.00011099,2]
[405943537,1771433444434,-39986.09378912,0.00011099,2]
[405943538,1771433444443,-39986.09378908,0.00011099,2]
[405943539,1771433444461,-39986.09378908,0.00011099,2]
[405943540,1771433444472,-39986.09378908,0.00011099,2]
[405943541,1771433444481,-203245.0,0.000111,2]
[405943542,1771433444490,-3000.0,0.00011107,2]
[405943543,1771433444500,-166.66,0.00011178,2]
[405943544,1771433444511,-1600.0,0.00011182,2]
[405943545,1771433444520,-150.0,0.00011233,2]
[405943546,1771433444530,-200.0,0.00011233,2]
[405943547,1771433444539,-200.0,0.00011233,2]
[405943548,1771433444550,-200.0,0.00011233,2]
[405943549,1771433444559,-166.66,0.00011288,2]
[405943550,1771433444568,-200.0,0.00011345,2]
[405943551,1771433444578,-200.0,0.00011345,2]
[405943552,1771433444587,-200.0,0.00011345,2]
[405943553,1771433444596,-166.66,0.00011397,2]
[405943554,1771433444605,-516.37,0.00011416,2]
[405943555,1771433444614,-1496.20683139,0.00011443,2]
[405943556,1771433444623,-200.0,0.00011459,2]
[405943557,1771433444632,-200.0,0.00011459,2]
[405943558,1771433444641,-200.0,0.00011459,2]
[405943559,1771433444650,-173.62051493,0.00011496,2]
[405943560,1771433444659,-160.0,0.00011496,2]
[405943561,1771433444668,-166.66,0.00011507,2]
[405943562,1771433444677,-20695.01,0.00011507,2]
[405943563,1771433444687,-200.0,0.00011573,2]
[405943564,1771433444696,-200.0,0.00011573,2]
[405943566,1771433444705,-200.0,0.00011573,2]
[405943567,1771433444714,-5531.0,0.000116,3]
[405943569,1771433444723,-508.25195844,0.00011655,2]
[405943571,1771433444733,-200.0,0.00011689,2]
[405943572,1771433444742,-200.0,0.00011689,2]
[405943573,1771433444750,-200.0,0.00011689,2]
[405943574,1771433444759,-39986.09378908,0.00011709,2]
[405943575,1771433444768,-47536.88696193,0.00011733,2]
[405943576,1771433444776,-516.37,0.00011872,2]
[405943577,1771433444785,-5000.0,0.00012,2]
[405943578,1771433444794,-5531.0,0.00012,5]
[405943579,1771433444803,-285.65412831,0.0001225,2]
[405943580,1771433444812,-180.65136628,0.0001225,2]
[405943581,1771433444821,-2245.76153974,0.0001225,2]
[405943582,1771433444830,-516.37,0.00012329,2]
[405943583,1771433444839,-183.47,0.00012526,2]
[405943584,1771433444848,-358.32,0.00012679,2]
[405943585,1771433444857,-39986.09378908,0.00012937,2]
[405943586,1771433444866,-47536.88696193,0.00012967,2]
[405943587,1771433444875,-5000.0,0.00013,2]
[405943588,1771433444883,-500.0,0.00013,2]
[405943589,1771433444892,-500.0,0.00013,2]
[405943590,1771433444901,-500.0,0.00013,2]
[405943591,1771433444910,-500.0,0.00013,2]
[405943592,1771433444919,-500.0,0.00013,2]
[405943593,1771433444928,-500.0,0.00013,2]
[405943594,1771433444937,-500.0,0.00013,2]
[405943595,1771433444946,-900.0,0.00013,2]
[405943596,1771433444956,-600.0,0.00013,2]
[405943597,1771433444965,-500.0,0.00013,2]
[405943598,1771433444974,-600.0,0.00013,2]
[405943599,1771433444983,-500.0,0.00013,2]
[405943600,1771433444992,-600.0,0.00013,2]
[405943601,1771433445001,-500.0,0.00013,2]
[405943602,1771433445010,-600.0,0.00013,2]
[405943603,1771433445019,-500.0,0.00013,2]
[405943604,1771433445029,-600.0,0.00013,2]
[405943605,1771433445038,-500.0,0.00013,2]
[405943606,1771433445047,-600.0,0.00013,2]
[405943607,1771433445056,-500.0,0.00013,2]
[405943608,1771433445065,-600.0,0.00013,2]
[405943609,1771433445074,-500.0,0.00013,2]
[405943610,1771433445083,-600.0,0.00013,2]
[405943611,1771433445092,-500.0,0.00013,2]
[405943612,1771433445101,-600.0,0.00013,2]
[405943613,1771433445111,-500.0,0.00013,2]
[405943614,1771433445119,-600.0,0.00013,2]
[405943615,1771433445129,-647.40453028,0.00013,2]
[405943616,1771433445138,-600.0,0.00013,2]
[405943617,1771433445148,-600.0,0.00013,2]
[405943618,1771433445158,-1000.0,0.00013,2]
[405943619,1771433445166,-500.0,0.00013,2]
[405943620,1771433445175,-500.0,0.00013,2]
[405943621,1771433445186,-238.86,0.00013578,2]
[405943622,1771433445194,-10000.0,0.00013627,2]
[405943623,1771433445203,-190.8,0.00013676,2]
[405943624,1771433445212,-500.0,0.00013698,2]
[405943625,1771433445221,-500.0,0.00013698,2]
[405943626,1771433445230,-500.0,0.00013698,2]
[405943627,1771433445239,-500.0,0.00013698,2]
[405943628,1771433445249,-500.0,0.00013698,2]
[405943629,1771433445258,-500.0,0.00013698,2]
[405943630,1771433445267,-500.0,0.00013698,2]
[405943631,1771433445276,-207.45341445,0.00013698,2]
[405943632,1771433445285,-500.0,0.00013698,2]
[405943633,1771433445294,-500.0,0.00013698,2]
[405943634,1771433445303,-500.0,0.00013698,2]
[405943635,1771433445312,-500.0,0.00013698,2]
[405943637,1771433445321,-500.0,0.00013698,2]
[405943638,1771433445329,-500.0,0.00013698,2]
[405943639,1771433445338,-500.0,0.00013698,2]
[405943640,1771433445347,-500.0,0.00013698,2]
[405943641,1771433445356,-500.0,0.00013698,2]
[405943642,1771433445365,-500.0,0.00013698,2]
[405943644,1771433445374,-500.0,0.00013698,2]
[405943646,1771433445382,-500.0,0.00013698,2]
[405943647,1771433445391,-500.0,0.00013698,2]
[405943648,1771433445400,-500.0,0.00013698,2]
[405943649,1771433445409,-500.0,0.00013698,2]
[405943650,1771433445418,-500.0,0.00013698,2]
[405943652,1771433445426,-500.0,0.00013698,2]
[405943653,1771433445435,-500.0,0.00013698,2]
[405943654,1771433445444,-500.0,0.00013698,2]
[405943655,1771433445453,-500.0,0.00013698,2]
[405943656,1771433445461,-500.0,0.00013698,2]
[405943657,1771433445471,-500.0,0.00013698,2]
[405943658,1771433445479,-500.0,0.00013698,2]
[405943659,1771433445488,-500.0,0.00013698,2]
[405943660,1771433445497,-500.0,0.00013698,2]
[405943661,1771433445509,-500.0,0.00013698,2]
[405943662,1771433445517,-500.0,0.00013698,2]
[405943663,1771433445526,-500.0,0.00013698,2]
[405943664,1771433445536,-500.0,0.00013698,2]
[405943665,1771433445544,-500.0,0.00013698,2]
[405943666,1771433445554,-500.0,0.00013698,2]
[405943667,1771433445562,-500.0,0.00013698,2]
[405943668,1771433445571,-500.0,0.00013698,2]
[405943669,1771433445581,-500.0,0.00013698,2]
[405943670,1771433445590,-500.0,0.00013698,2]
[405943671,1771433445599,-500.0,0.00013698,2]
[405943672,1771433445608,-500.0,0.00013698,2]
[405943673,1771433445617,-500.0,0.00013698,2]
[405943674,1771433445626,-500.0,0.00013698,2]
[405943675,1771433445635,-500.0,0.00013698,2]
[405943676,1771433445646,-500.0,0.00013698,2]
[405943677,1771433445655,-500.0,0.00013698,2]
[405943678,1771433445665,-500.0,0.00013698,2]
[405943679,1771433445674,-500.0,0.00013698,2]
[405943680,1771433445683,-500.0,0.00013698,2]
[405943681,1771433445693,-500.0,0.00013698,2]
[405943682,1771433445702,-500.0,0.00013698,2]
[405943683,1771433445710,-500.0,0.00013698,2]
[405943684,1771433445719,-500.0,0.00013698,2]
[405943685,1771433445728,-500.0,0.00013698,2]
[405943686,1771433445737,-500.0,0.00013698,2]
[405943687,1771433445746,-500.0,0.00013698,2]
[405943688,1771433445756,-500.0,0.00013698,2]
[405943689,1771433445767,-500.0,0.00013698,2]
[405943690,1771433445778,-619.85713991,0.00013698,2]
[405943691,1771433445787,-500.0,0.00013698,2]
[405943692,1771433445797,-500.0,0.00013698,2]
[405943694,1771433445806,-500.0,0.00013698,2]
[405943695,1771433445816,-500.0,0.00013698,2]
[405943696,1771433445825,-500.0,0.00013698,2]
[405943697,1771433445836,-500.0,0.00013698,2]
[405943698,1771433445845,-500.0,0.00013698,2]
[405943700,1771433445854,-500.0,0.00013698,2]
[405943701,1771433445863,-500.0,0.00013698,2]
[405943703,1771433445872,-500.0,0.00013698,2]
[405943704,1771433445884,-500.0,0.00013698,2]
[405943705,1771433445894,-500.0,0.00013698,2]
[405943706,1771433445903,-551.5455423,0.00013698,2]
[405943708,1771433445913,-500.0,0.00013698,2]
[405943709,1771433445922,-500.0,0.00013698,2]
[405943710,1771433445930,-500.0,0.00013698,2]
[405943711,1771433445939,-196.13541993,0.00013698,2]
[405943712,1771433445948,-650.14,0.00013698,2]
[405943713,1771433445957,-650.14,0.00013698,2]
[405943715,1771433445966,-650.14,0.00013698,2]
[405943716,1771433445974,-1223.27,0.00013698,2]
[405943717,1771433445983,-1223.27,0.00013698,2]
[405943719,1771433445992,-1223.27,0.00013698,2]
[405943720,1771433446002,-500.0,0.00013698,2]
[405943721,1771433446012,-500.0,0.00013698,2]
[405943722,1771433446024,-500.0,0.00013698,2]
[405943723,1771433446034,-173.07181477,0.00013698,2]
[405943724,1771433446045,-500.0,0.00013698,2]
[405943725,1771433446055,-500.0,0.00013698,2]
[405943726,1771433446064,-500.0,0.00013698,2]
[405943727,1771433446074,-500.0,0.00013698,2]
[405943728,1771433446084,-500.0,0.00013698,2]
[405943729,1771433446093,-639.8454937,0.00013698,2]
[405943730,1771433446103,-500.0,0.00013698,2]
[405943731,1771433446113,-500.0,0.00013698,2]
[405943732,1771433446122,-500.0,0.00013698,2]
[405943733,1771433446131,-500.0,0.00013698,2]
[405943734,1771433446141,-500.0,0.00013698,2]
[405943735,1771433446150,-500.0,0.00013698,2]
[405943736,1771433446159,-500.0,0.00013698,2]
[405943737,1771433446169,-500.0,0.00013698,2]
[405943738,1771433446177,-500.0,0.00013698,2]
[405943739,1771433446186,-500.0,0.00013698,2]
[405943740,1771433446196,-500.0,0.00013698,2]
[405943741,1771433446206,-500.0,0.00013698,2]
[405943742,1771433446216,-500.0,0.00013698,2]
[405943743,1771433446225,-500.0,0.00013698,2]
[405943744,1771433446236,-500.0,0.00013698,2]
[405943745,1771433446245,-500.0,0.00013698,2]
[405943746,1771433446255,-500.0,0.00013698,2]
[405943747,1771433446264,-500.0,0.00013698,2]
[405943748,1771433446275,-500.0,0.00013698,2]
[405943749,1771433446285,-9137.12,0.00013699,2]
[405943750,1771433446294,-193.37,0.00013699,2]
[405943751,1771433446303,-161.14,0.00013699,2]
[405943752,1771433446312,-805.74,0.00013699,2]
[405943753,1771433446322,-150.0,0.00013699,2]
[405943754,1771433446331,-618.68,0.000137,2]
[405943755,1771433446340,-618.68,0.000137,2]
[405943756,1771433446350,-618.68,0.000137,2]
[405943757,1771433446359,-618.68,0.000137,2]
[405943758,1771433446369,-618.68,0.000137,2]
[405943759,1771433446378,-293.08527688,0.00013727,2]
[405943760,1771433446387,-500.0,0.00013727,2]
[405943761,1771433446396,-500.0,0.00013727,2]
[405943762,1771433446405,-500.0,0.00013727,2]
[405943763,1771433446414,-163.91978411,0.00013727,2]
[405943764,1771433446423,-500.0,0.00013727,2]
[405943765,1771433446432,-500.0,0.00013727,2]
[405943766,1771433446441,-576.27008267,0.00013727,2]
[405943767,1771433446450,-159.78130504,0.00013727,2]
[405943768,1771433446459,-500.61236308,0.00013727,2]
[405943769,1771433446468,-500.0,0.00013727,2]
[405943770,1771433446477,-162.44090576,0.00013727,2]
[405943771,1771433446486,-523.76939094,0.00013727,2]
[405943772,1771433446495,-500.0,0.00013727,2]
[405943773,1771433446509,-161.91543502,0.00013727,2]
[405943774,1771433446519,-162.00011726,0.00013727,2]
[405943775,1771433446529,-501.41908298,0.00013727,2]
[405943776,1771433446538,-500.0,0.00013727,2]
[405943777,1771433446688,-160.59858326,0.00013727,2]
[405943778,1771433446699,-500.0,0.00013727,2]
[405943779,1771433446711,-500.0,0.00013727,2]
[405943780,1771433446722,-161.89972867,0.00013727,2]
[405943781,1771433446732,-500.0,0.00013727,2]
[405943782,1771433446742,-500.0,0.00013727,2]
[405943783,1771433446752,-377.84784353,0.00013727,2]
[405943784,1771433446761,-510.86398714,0.00013727,2]
[405943785,1771433446770,-150.0,0.00013754,2]
[405943786,1771433446779,-150.0,0.00013809,2]
[405943787,1771433446788,-150.0,0.00013863,2]
[405943788,1771433446797,-150.0,0.00013918,2]
[405943789,1771433446806,-250.0,0.00013973,2]
[405943790,1771433446815,-5000.0,0.00014,2]
[405943791,1771433446824,-190.8,0.00014021,2]
[405943792,1771433446833,-600.0,0.0001405,2]
[405943793,1771433446842,-500.0,0.0001405,2]
[405943794,1771433446851,-500.0,0.0001405,2]
[405943795,1771433446860,-600.0,0.0001405,2]
[405943796,1771433446869,-500.0,0.0001405,2]
[405943797,1771433446878,-795.55172821,0.0001405,2]
[405943798,1771433446887,-500.0,0.0001405,2]
[405943799,1771433446895,-500.0,0.0001405,2]
[405943800,1771433446904,-500.0,0.0001405,2]
[405943801,1771433446913,-600.0,0.0001405,2]
[405943802,1771433446922,-500.0,0.0001405,2]
[405943803,1771433446931,-500.0,0.0001405,2]
[405943804,1771433446941,-600.0,0.0001405,2]
[405943805,1771433446950,-500.0,0.0001405,2]
[405943806,1771433446959,-500.0,0.0001405,2]
[405943807,1771433446968,-600.0,0.0001405,2]
[405943808,1771433446977,-500.0,0.0001405,2]
[405943809,1771433446985,-500.0,0.0001405,2]
[405943810,1771433446994,-600.0,0.0001405,2]
[405943811,1771433447003,-500.0,0.0001405,2]
[405943812,1771433447013,-500.0,0.0001405,2]
[405943813,1771433447022,-600.0,0.0001405,2]
[405943814,1771433447032,-500.0,0.0001405,2]
[405943815,1771433447041,-500.0,0.0001405,2]
[405943816,1771433447050,-600.0,0.0001405,2]
[405943817,1771433447059,-500.0,0.0001405,2]
[405943818,1771433447068,-600.0,0.0001405,2]
[405943819,1771433447077,-500.0,0.0001405,2]
[405943820,1771433447086,-600.0,0.0001405,2]
[405943821,1771433447095,-500.0,0.0001405,2]
[405943822,1771433447105,-600.0,0.0001405,2]
[405943823,1771433447114,-500.0,0.0001405,2]
[405943824,1771433447124,-600.0,0.0001405,2]
[405943825,1771433447133,-600.0,0.0001405,2]
[405943826,1771433447142,-600.0,0.0001405,2]
[405943827,1771433447151,-500.0,0.0001405,2]
[405943828,1771433447162,-500.0,0.0001405,2]
[405943829,1771433447172,-4126.775759,0.00014058,7]
[405943830,1771433447181,-500.0,0.00014124,2]
[405943831,1771433447190,-216.12,0.00014124,2]
[405943832,1771433447200,-39986.09378908,0.00014164,2]
[405943833,1771433447210,-47536.88696193,0.000142,2]
[405943834,1771433447220,-1000.0,0.00014275,2]
[405943835,1771433447229,-1003.02217796,0.00014275,2]
[405943836,1771433447238,-1000.0,0.00014275,2]
[405943837,1771433447250,-1000.0,0.00014275,2]
[405943838,1771433447261,-1000.0,0.00014275,2]
[405943839,1771433447271,-1000.0,0.00014275,2]
[405943840,1771433447282,-503.21395664,0.00014275,2]
[405943841,1771433447293,-1000.0,0.00014275,2]
[405943842,1771433447304,-1000.0,0.00014359,7]
[405943843,1771433447313,-500.0,0.00014823,2]
[405943844,1771433447323,-512.08661125,0.00014823,2]
[405943845,1771433447333,-1036.10393399,0.00014823,2]
[405943846,1771433447344,-1500.0,0.00014823,2]
[405943847,1771433447354,-5000.0,0.00015,2]
[405943848,1771433447364,-183.47,0.00015006,2]
[405943849,1771433447374,-500.0,0.00015056,2]
[405943850,1771433447385,-500.0,0.00015056,2]
[405943851,1771433447396,-500.0,0.00015056,2]
[405943852,1771433447407,-500.0,0.00015056,2]
[405943853,1771433447418,-392.9,0.00015056,2]
[405943854,1771433447427,-358.32,0.00015258,2]
[405943855,1771433447436,-500.0,0.00015319,2]
[405943856,1771433447446,-500.0,0.00015319,2]
[405943857,1771433447455,-500.0,0.00015319,2]
[405943858,1771433447466,-500.0,0.00015319,2]
[405943859,1771433447478,-500.0,0.00015319,2]
[405943860,1771433447488,-500.0,0.00015319,2]
[405943861,1771433447499,-500.0,0.00015319,2]
[405943862,1771433447513,-194.416276,0.00015319,2]
[405943863,1771433447523,-174.61919141,0.00015319,2]
[405943864,1771433447533,-578.20924308,0.00015319,2]
[405943865,1771433447546,-693.3919763,0.00015319,2]
[405943866,1771433447556,-277.35679052,0.00015319,2]
[405943867,1771433447566,-1191.23979414,0.00015371,2]
[405943868,1771433447576,-719.04747942,0.00015374,2]
[405943869,1771433447585,-39986.09378908,0.00015391,2]
[405943870,1771433447596,-745.65223616,0.00015429,2]
[405943871,1771433447605,-47536.88696193,0.00015433,2]
[405943872,1771433447615,-773.2413689,0.00015484,2]
[405943873,1771433447626,-801.85129955,0.00015539,2]
[405943874,1771433447637,-831.51979763,0.00015594,2]
[405943875,1771433447648,-862.28603014,0.00015649,2]
[405943876,1771433447657,-894.19061326,0.00015704,2]
[405943877,1771433447668,-927.27566595,0.00015759,2]
[405943878,1771433447677,-961.58486559,0.00015814,2]
[405943879,1771433447686,-181.08010149,0.00015867,2]
[405943880,1771433447696,-287.61899177,0.00015867,2]
[405943881,1771433447706,-997.16350561,0.00015869,2]
[405943882,1771433447715,-483.27611959,0.00015869,2]
[405943883,1771433447726,-5000.0,0.00016,2]
[405943884,1771433447738,-2000.0,0.00016,2]
[405943885,1771433447747,-506.0,0.0001605,2]
[405943886,1771433447757,-1000.0,0.000161,2]
[405943887,1771433447767,-1000.0,0.000162,2]
[405943888,1771433447777,-1000.0,0.000163,2]
[405943889,1771433447787,-2836.0,0.000164,2]
[405943890,1771433447798,-1000.0,0.000164,2]
[405943891,1771433447810,-187.78006525,0.00016415,2]
[405943892,1771433447820,-298.26089446,0.00016415,2]
[405943893,1771433447830,-1000.0,0.000165,2]
[405943894,1771433447839,-37237.52246235,0.00016568,2]
[405943895,1771433447851,-1000.0,0.000166,2]
[405943896,1771433447861,-39986.09378908,0.00016619,2]
[405943897,1771433447870,-650.14,0.00016651,2]
[405943898,1771433447881,-1223.27,0.00016651,2]
[405943899,1771433447891,-47536.88696193,0.00016667,2]
[405943900,1771433447901,-1000.0,0.000167,2]
[405943901,1771433447912,-1000.0,0.000168,2]
[405943902,1771433447921,-1000.0,0.00016873,2]
[405943903,1771433447930,-1000.0,0.00016886,2]
[405943904,1771433447941,-1000.0,0.000169,2]
[405943905,1771433447952,-1000.0,0.0001692,2]
[405943906,1771433447961,-1000.0,0.00016936,2]
[405943907,1771433447972,-194.72792766,0.00016963,2]
[405943908,1771433447982,-309.29654756,0.00016963,2]
[405943909,1771433447992,-1000.0,0.00016969,2]
[405943910,1771433448003,-1000.0,0.00016976,2]
[405943911,1771433448013,-237.4320739,0.00016983,2]
[405943912,1771433448023,-5000.0,0.00017,2]
[405943913,1771433448034,-503.92174178,0.00017,5]
[405943914,1771433448044,-1000.0,0.00017014,2]
[405943915,1771433448055,-506.0,0.00017019,2]
[405943916,1771433448066,-1000.0,0.00017047,2]
[405943917,1771433448075,-1000.0,0.00017057,2]
[405943918,1771433448086,-1000.0,0.000171,2]
[405943919,1771433448097,-1000.0,0.00017104,2]
[405943920,1771433448106,-1000.0,0.00017105,2]
[405943921,1771433448116,-1000.0,0.00017119,2]
[405943922,1771433448125,-1000.0,0.00017129,2]
[405943923,1771433448134,-1000.0,0.00017171,2]
[405943924,1771433448143,-1000.0,0.00017184,2]
[405943925,1771433448153,-1000.0,0.000172,2]
[405943926,1771433448162,-1000.0,0.00017234,2]
[405943927,1771433448171,-1000.0,0.00017265,2]
[405943928,1771433448180,-1000.0,0.00017273,2]
[405943929,1771433448190,-1000.0,0.00017275,2]
[405943930,1771433448199,-1000.0,0.000173,2]
[405943931,1771433448208,-1000.0,0.0001735,2]
[405943932,1771433448217,-1000.0,0.00017368,2]
[405943933,1771433448227,-350.0,0.00017374,2]
[405943934,1771433448236,-1000.0,0.000174,2]
[405943935,1771433448246,-1000.0,0.00017406,2]
[405943936,1771433448255,-1000.0,0.00017427,2]
[405943937,1771433448265,-150.0,0.00017444,2]
[405943938,1771433448275,-1000.0,0.00017467,2]
[405943939,1771433448284,-1000.0,0.00017472,2]
[405943940,1771433448294,-150.0,0.00017478,2]
[405943941,1771433448303,-150.0,0.00017481,2]
[405943942,1771433448312,-150.0,0.00017485,2]
[405943943,1771433448321,-1080.27787936,0.00017486,2]
[405943944,1771433448330,-1000.0,0.000175,2]
[405943945,1771433448340,-2000.0,0.000175,2]
[405943946,1771433448349,-1000.0,0.00017503,2]
[405943947,1771433448358,-201.93286099,0.00017511,2]
[405943948,1771433448367,-320.74051982,0.00017511,2]
[405943949,1771433448376,-150.0,0.00017518,2]
[405943950,1771433448385,-1000.0,0.00017519,2]
[405943951,1771433448394,-1000.0,0.00017519,2]
[405943952,1771433448403,-150.0,0.0001752,2]
[405943953,1771433448412,-150.0,0.00017525,2]
[405943954,1771433448421,-150.0,0.00017532,2]
[405943955,1771433448431,-150.0,0.00017536,2]
[405943956,1771433448440,-350.0,0.0001755,2]
[405943957,1771433448449,-1000.0,0.00017553,2]
[405943958,1771433448458,-1000.0,0.00017558,2]
[405943959,1771433448468,-1000.0,0.00017562,2]
[405943960,1771433448477,-1000.0,0.00017563,2]
[405943961,1771433448487,-244.63,0.00017563,2]
[405943962,1771433448497,-1000.0,0.00017572,2]
[405943963,1771433448508,-1000.0,0.00017572,2]
[405943964,1771433448516,-996.49958588,0.00017588,2]
[405943965,1771433448526,-1000.0,0.0001759,2]
[405943966,1771433448535,-1000.0,0.000176,2]
[405943967,1771433448545,-1100.0,0.000176,6]
[405943968,1771433448555,-1000.0,0.0001761,2]
[405943969,1771433448564,-150.0,0.00017627,2]
[405943970,1771433448574,-1000.0,0.00017634,2]
[405943971,1771433448585,-4207.67642787,0.0001764,2]
[405943972,1771433448594,-150.0,0.00017651,2]
[405943973,1771433448603,-150.0,0.00017667,2]
[405943974,1771433448612,-1000.0,0.00017678,2]
[405943975,1771433448622,-150.0,0.00017685,2]
[405943976,1771433448631,-1000.0,0.00017686,2]
[405943977,1771433448640,-288.61284119,0.00017688,2]
[405943978,1771433448649,-1000.0,0.00017691,2]
[405943979,1771433448658,-1000.0,0.000177,2]
[405943980,1771433448668,-1100.0,0.000177,6]
[405943981,1771433448678,-150.0,0.00017705,2]
[405943982,1771433448687,-1000.0,0.00017725,2]
[405943983,1771433448695,-1000.0,0.00017734,2]
[405943984,1771433448705,-3063.2331119,0.0001774,2]
[405943985,1771433448714,-150.0,0.00017756,2]
[405943986,1771433448723,-1000.0,0.00017758,2]
[405943987,1771433448733,-1000.0,0.00017764,2]
[405943988,1771433448744,-150.0,0.00017773,2]
[405943989,1771433448755,-150.0,0.00017777,2]
[405943990,1771433448764,-350.0,0.00017798,2]
[405943991,1771433448773,-1000.0,0.000178,2]
[405943992,1771433448783,-1100.0,0.000178,6]
[405943993,1771433448794,-500.0,0.00017808,2]
[405943994,1771433448803,-500.0,0.00017808,2]
[405943995,1771433448812,-500.0,0.00017808,2]
[405943996,1771433448822,-2000.0,0.0001782,2]
[405943997,1771433448831,-2000.0,0.0001782,2]
[405943998,1771433448841,-150.0,0.00017824,2]
[405943999,1771433448850,-1000.0,0.00017839,2]
[405944000,1771433448860,-1000.0,0.00017843,2]
[405944001,1771433448869,-39986.09378908,0.00017846,2]
[405944002,1771433448879,-150.0,0.00017853,2]